{"text_format":"3","workbook":"xlsx","n_sheets":3,"sheets":["Resumen","Comprar un coche","Compartir viajes"],"not_rendered":{"charts":1,"defined_names":33},"read":"whole","date_system":"1900"}

{"sheet":"Resumen","index":0,"n_rows":16,"n_cols":4,"rows_kept":16}
[null,"Comprar un coche en frente a compartir viajes"]
[null,"Viaje promedio"]
[null,"Promedio de viajes por día",2]
[null,"Tiempo medio para cada viaje",20,"min(s)"]
[null,"Distancia media para cada viaje",{"v":10,"d":"10.00"},"Km"]
[null,"Kilometraje anual",{"$f":"IFERROR(PromedioViajesPorDía*PromedioDistanciaPorViaje*365,\"\")","v":{"v":7300,"d":"7,300"}},"Km"]
[null,"Coste de tiempo"]
[null,"Tarifa por hora",{"v":20,"d":"20.00 €"}]
[null,"Resumen de coste anual"]
[" ","Columna1","Comprar un coche","Compartir viajes"]
[null,"Coste de compra",{"$f":"CosteCompraAnual","v":{"v":7187.314844765674,"d":"7,187.31 €"}},"-"]
[null,"Costes de uso del coche",{"$f":"CosteUsoAnual","v":{"v":2990,"d":"2,990.00 €"}},"-"]
[null,"Costes de combustible",{"$f":"CosteCombustibleAnual","v":{"v":617.6923076923076,"d":"617.69 €"}},"-"]
[null,"Coste viaje","-",{"$f":"CosteTarifaAnual","v":{"v":12340.65,"d":"12,340.65 €"}}]
[null,"Coste de tiempo",{"$f":"CosteAnualDeTiempo_ComprarCoche","v":{"v":7300,"d":"7,300.00 €"}},{"$f":"CosteAnualDeTiempo_ViajeCompartido","v":{"v":2190,"d":"2,190.00 €"}}]
[null,"Coste anual total",{"$f":"SUBTOTAL(109,Tabla7[Comprar un coche])","v":{"v":18095.007152457983,"d":"18,095.01 €"}},{"$f":"SUBTOTAL(109,Tabla7[Compartir viajes])","v":{"v":14530.65,"d":"14,530.65 €"}}]

{"sheet":"Comprar un coche","index":1,"n_rows":28,"n_cols":4,"rows_kept":28}
[null,"Comprar un coche"]
[null,"Coste de compra"]
[]
[null,"Precio del coche",{"v":30000,"d":"30,000.00 €"}]
[null,"Impuesto sobre las ventas",{"v":0.0575,"d":"0.06 €"}]
[null,"Gastos de compra",{"v":220,"d":"220.00 €"}]
[null,"Pago inicial",{"v":3000,"d":"3,000.00 €"},"meses"]
[null,"Plazo del préstamo",{"v":60,"d":"60.00 €"}]
[null,"Tasa de interés",{"v":0.045,"d":"0.05 €"}]
[null,"Coste anual de compra",{"$f":"IFERROR(-PMT(TasaInterés,PlazoPréstamo/12,PrecioDeCoche*(1+ImpuestosDeVentas)-PagoInicial)+(GastosCompra+PagoInicial)/(PlazoPréstamo/12),\"\")","v":{"v":7187.314844765674,"d":"7,187.31 €"}}]
[null,{"$f":"IF(CosteCompraAnual=\"\",\"\",\"Para un período de préstamo de \" & TEXT(PlazoPréstamo/12,\"0,0\") & \" años\")","v":"Para un período de préstamo de 5,0 años"}]
[null,"Costes de uso del coche"]
[null,"Reparaciones y mantenimiento",{"v":1000,"d":"1,000.00 €"},"por año"]
[null,"Seguro",{"v":815,"d":"815.00 €"},"por año"]
[null,"Registro e impuestos",{"v":75,"d":"75.00 €"},"por año"]
[null,"Aparcamiento",{"v":500,"d":"500.00 €"},"por año"]
[null,"Impuesto a la propiedad del garaje",{"v":500,"d":"500.00 €"},"por año"]
[null,"Otros gastos de garaje",{"v":100,"d":"100.00 €"},"por año"]
[null,"Coste de uso anual",{"$f":"SUBTOTAL(109,Tabla3[Columna3])","v":{"v":2990,"d":"2,990.00 €"}}]
[null,"Costes de combustible"]
[null,"Coste de combustible",{"v":3.3,"d":"3.30 €"},"por litro"]
[null,"Eficiencia del combustible",39,"km/litro"]
[null,"Coste anual de combustible",{"$f":"IFERROR(KilometrajeTotal/EficienciaCombustible*CosteCombustible,\"\")","v":{"v":617.6923076923076,"d":"617.69 €"}}]
[null,{"$f":"IF(CosteCombustibleAnual=\"\",\"\",\"Basado en un total de \" & TEXT(KilometrajeTotal,\"#.##0\") & \" km anuales\")","v":"Basado en un total de 7.300 km anuales"}]
[null,"Coste de tiempo"]
[null,"Tiempo de estacionamiento medio",10,"min."]
[null,"Coste de tiempo anual",{"$f":"IFERROR((PromedioTiempoPorViaje+PromedioTiempoAparcamiento)*PromedioViajesPorDía/60*TasaPorHora*365,\"\")","v":{"v":7300,"d":"7,300.00 €"}}]
[null,{"$f":"IF(CosteAnualDeTiempo_ComprarCoche=\"\",\"\",\"Basado en \" & PromedioViajesPorDía & \" viajes por día, \" &PromedioTiempoPorViaje +PromedioTiempoAparcamiento & \" min cada viaje y tarifa de \" & TEXT(TasaPorHora,\"#.##0,00 €\") & \" por hora\")","v":"Basado en 2 viajes por día, 30 min cada viaje y tarifa de 20,00 € por hora"}]

{"sheet":"Compartir viajes","index":2,"n_rows":14,"n_cols":4,"rows_kept":14}
[null,"Compartir viajes"]
[null,"Tarifa de viaje compartido"]
[null,"Tarifa base",{"v":2.3,"d":"2.30 €"},"por trayecto"]
[null,"Tarifa de distancia",{"v":1,"d":"1.00 €"},"por kilómetro"]
[null,"Tarifa de tiempo",{"v":0.12,"d":"0.12 €"},"por minuto"]
[null,"Multiplicador de aumento promedio",{"v":2.5,"d":"2.50"}]
[null,"Porcentaje de viajes durante la hora punta",{"v":0.1,"d":"10%"}]
[null,"Coste anual de tarifas",{"$f":"IFERROR((TarifaBase+TarifaDistancia*PromedioDistanciaPorViaje+GastoDeTiempo*PromedioTiempoPorViaje)*PromedioViajesPorDía*365*((1-PorcentajeTrayectosHoraPunta)+PromedioMultiplicadorDeAumento*PorcentajeTrayectosHoraPunta),\"\")","v":{"v":12340.65,"d":"12,340.65 €"}}]
[null,{"$f":"IF(CosteTarifaAnual=\"\",\"\",\"Basado en \" & PromedioViajesPorDía & \" viajes por día, \" & PromedioTiempoPorViaje & \" min y \" & PromedioDistanciaPorViaje & \" kilómetros de viaje\")","v":"Basado en 2 viajes por día, 20 min y 10 kilómetros de viaje"}]
[null,"Coste de tiempo"]
[null,"Tiempo de espera medio por viaje",{"v":5,"d":"5.00 €"},"min."]
[null,"Tiempo productivo durante el transporte",{"v":0.8,"d":"0.80 €"}]
[null,"Coste de tiempo anual",{"$f":"IFERROR((PromedioTiempoDeEspera+PromedioTiempoPorViaje*(1-PorcentajeProductividad))*PromedioViajesPorDía/60*TasaPorHora*365,\"\")","v":{"v":2190,"d":"2,190.00 €"}}]
[null,{"$f":"IF(CosteAnualDeTiempo_ViajeCompartido=\"\",\"\",\"Basado en \" & PromedioViajesPorDía & \" viajes por día, \" & PromedioTiempoPorViaje & \" min cada viaje y tarifa de \" & TEXT(TasaPorHora,\"#.##0,00 €\") & \" por hora\")","v":"Basado en 2 viajes por día, 20 min cada viaje y tarifa de 20,00 € por hora"}]